Cogmind - Beta 9 @@@ ROGUE MODE // 2019.10.23 @ 21:16:26 Player: Mr.Manatee Result: Destroyed by Z-Imprinter with Zionite Laser-M Performance ------------- Evolutions (1) 500 Regions Visited (5) 1000 Robots Destroyed (14) 70 Value Destroyed (228) 228 Prototype IDs (7) 140 Alien Tech Used (0) 0 Bonus (800) 800 TOTAL SCORE: 2738 Bonus ------- Pacifist 200 Met Imprinter 300 Was Imprinted 300 Cogmind --------- Core Integrity 0/400 Matter 258/300 Energy 100/100 System Corruption 0% Temperature Cool (18) Location -7/Deep Caves Parts ------- Power (1) Propulsion (2) Utility (3) Large Storage Unit Experimental Optical Array Experimental System Shield Weapon (3) Inventory (10) Ion Engine Light Treads Experimental Targeting Computer Experimental Targeting Computer Light Armor Plating Storm Laser Peak State ------------ Power Improved Ion Engine Propulsion Light Treads Light Treads Utility Large Storage Unit Experimental Melee Analysis Suite Experimental System Shield Weapon Assault Rifle Heavy Assault Rifle Heavy Assault Rifle Inventory Ion Engine Light Treads Light Armor Plating Storm Laser Assault Cannon [Rating: 29] Favorites ----------- Power Improved Ion Engine Engine Improved Ion Engine Propulsion Light Treads Treads Light Treads Leg Aluminum Leg Utility Large Storage Unit Storage Large Storage Unit Processor Experimental Optical Array Hackware Experimental System Shield Protection Hardened Light Armor Plating Weapon Heavy Assault Rifle Ballistic Gun Heavy Assault Rifle Ballistic Cannon Assault Cannon Build | -11 -10 -9 -9 -7 -7 ------- Run | Scr Mat Mat Min Zio Dee Slots Evolved 2 | . . 2 . . . Power . | . . . . . . Propulsion . | . . . . . . Utility 1 | . . 1 . . . Weapon 1 | . . 1 . . . Parts Attached 31 | 8 1 16 . 5 1 Power 2 | 1 . 1 . . . Engine 2 | 1 . 1 . . . Core . | . . . . . . Reactor . | . . . . . . Propulsion 7 | 4 . 3 . . . Treads 5 | 2 . 3 . . . Leg 2 | 2 . . . . . Wheel . | . . . . . . Hover . | . . . . . . Flight . | . . . . . . Utility 13 | 1 1 7 . 4 . Device . | . . . . . . Storage 3 | 1 . 2 . . . Processor 3 | . . . . 3 . Hackware 1 | . . . . 1 . Protection 6 | . 1 5 . . . Artifact . | . . . . . . Weapon 9 | 2 . 5 . 1 1 Energy Gun . | . . . . . . Energy Cannon . | . . . . . . Ballistic Gun 8 | 2 . 5 . 1 . Ballistic Cannon 1 | . . . . . 1 Launcher . | . . . . . . Special Weapon . | . . . . . . Impact Weapon . | . . . . . . Slashing Weapon . | . . . . . . Piercing Weapon . | . . . . . . Special Melee Weapon . | . . . . . . Unidentified Prototypes 4 | . . . . 4 . Parts Lost 7 | . . . . . 7 Power 1 | . . . . . 1 Propulsion 2 | . . . . . 2 Utility . | . . . . . . Weapon 4 | . . . . . 4 Highest Loss Streak 7 | . . . . . 7 Average Slot Usage (%) 97 | . 99 92 100 99 89 Engine 11 | . 14 11 11 11 8 Treads 22 | . 28 22 22 22 18 Storage 11 | . 14 11 11 11 11 Processor 4 | . . . . 6 11 Hackware 4 | . . . . 6 11 Protection 11 | . 13 20 22 8 . Ballistic Gun 30 | . 28 27 33 33 27 Naked Turns . | . . . . . . Heaviest Build 39 | 13 18 39 39 39 31 Greatest Support 40 | 40 40 40 40 40 40 Greatest Overweight (x) 7 | 1 . . . . 7 Average Overweight (x) . | . . . . . . Largest Inventory Capacity 10 | 6 6 10 10 10 10 Average Capacity 8 | 5 6 7 10 10 10 Most Carried 10 | 2 2 7 7 10 10 Average Carried 7 | . 2 4 6 9 9 Final Capacity 10 | . . . . . 10 Final Carried 9 | . . . . . 9 Class Distribution -------------------- 36% | Scavenger-Tank 25% | Scavenger-Skirmisher 20% | Mutant 14% | Messiah-Skirmisher Dominant Class ---------------- Mutant | -10/Materials Scavenger-Tank | -9/Materials Scavenger-Tank | -9/Mines Scavenger-Skirmisher | -7/Zion Messiah-Skirmisher | -7/Deep Caves Resources | -11 -10 -9 -9 -7 -7 ----------- Run | Scr Mat Mat Min Zio Dee Matter Collected 579 | 208 . 261 . 110 . Remotely . | . . . . . . Salvage Created 402 | . . 402 . . . Parts 24 | . . 24 . . . Haulers Intercepted . | . . . . . . Recyclers Shooed . | . . . . . . Parts Field Recycled . | . . . . . . Retrieved Matter . | . . . . . . Parts Self-Destructed . | . . . . . . Prevented . | . . . . . . Kills | -11 -10 -9 -9 -7 -7 ------- Run | Scr Mat Mat Min Zio Dee Combat Hostiles Destroyed 6 | . . 6 . . . Guns 6 | . . 6 . . . Classes Destroyed 5 | . . 4 . . 1 Recycler 2 | . . 2 . . . Watcher 1 | . . 1 . . . Swarmer 2 | . . 2 . . . Sentry 4 | . . 4 . . . Z-Technician 5 | . . . . . 5 Best Kill Streak 6 | . . 6 . . 5 Combat Bots Only 3 | . . 3 . . . Max Kills in Single Turn 5 | . . 1 . . 5 Gunslinging . | . . . . . . Exploded . | . . . . . . Melee . | . . . . . . Uniques/NPCs Destroyed . | . . . . . . Combat | -11 -10 -9 -9 -7 -7 -------- Run | Scr Mat Mat Min Zio Dee Damage Taken 1556 | . . 413 13 . 1130 Core 400 | . . 72 . . 328 Absorbed by Shields . | . . . . . . Core Remaining (%) 100 | 100 100 . . . . Volleys Fired 23 | . 1 20 . . 2 Largest 3 | . 2 3 . . 3 Hottest 67 | . 40 63 . . 67 Shots Fired 48 | . 2 41 . . 5 Gun 47 | . 2 41 . . 4 Cannon 1 | . . . . . 1 Launcher . | . . . . . . Special . | . . . . . . Kinetic 48 | . 2 41 . . 5 Thermal . | . . . . . . Explosive . | . . . . . . Electromagnetic . | . . . . . . Robot Hit Streak 8 | . . 8 . . . Robot Miss Streak 5 | . 2 5 . . 2 Penetration Max . | . . . . . . Secondary Targets . | . . . . . . Shots Hit Robots 28 | . . 28 . . . Core Hits 16 | . . 14 . . 2 Critical Hits . | . . . . . . Critical Kills . | . . . . . . Critical Parts Destroyed . | . . . . . . Melee Attacks . | . . . . . . Impact . | . . . . . . Slashing . | . . . . . . Piercing . | . . . . . . Sneak Attacks . | . . . . . . Combat Hostiles . | . . . . . . Follow-up Attacks . | . . . . . . Damage Inflicted 2578 | . . 348 . . 2230 Guns 348 | . . 348 . . . Cannons 20 | . . . . . 20 Explosions 2210 | . . . . . 2210 Melee . | . . . . . . Ramming . | . . . . . . Kinetic 368 | . . 348 . . 20 Thermal 2210 | . . . . . 2210 Explosive . | . . . . . . Electromagnetic . | . . . . . . Impact . | . . . . . . Slashing . | . . . . . . Piercing . | . . . . . . Highest Corruption 3 | . . 1 1 3 . Average Corruption 2 | . . 1 1 2 . Corruption Purged . | . . . . . . Effects 3 | . . . . 3 . Message Errors 1 | . . . . 1 . Energy Discharges 1 | . . . . 1 . Data Loss (minor) 1 | . . . . 1 . Overload Shots . | . . . . . . Overflow Damage 557 | . . . . . 557 Projectiles . | . . . . . . Explosions 557 | . . . . . 557 Melee . | . . . . . . Knockbacks . | . . . . . . Impact . | . . . . . . Kinetic . | . . . . . . Secondary . | . . . . . . Self-Inflicted Damage 430 | . . . . . 430 Shots 1 | . . . . . 1 Rammed . | . . . . . . Targets Rammed . | . . . . . . Kicked . | . . . . . . Crushed . | . . . . . . Highest Temperature 27 | . . 21 . . 27 Average Temperature 9 | . . 8 . . 14 Received Heat Transfer 252 | . . 63 . . 189 Siege Activations . | . . . . . . Robots Corrupted . | . . . . . . Combat Hostiles . | . . . . . . Parts Fried . | . . . . . . Impact Corruptions . | . . . . . . Robots Melted . | . . . . . . Combat Hostiles . | . . . . . . Parts Melted . | . . . . . . Heat Transferred . | . . . . . . Parts Sabotaged . | . . . . . . Parts Stolen . | . . . . . . Parts Stripped . | . . . . . . Power Chain Reactions . | . . . . . . Missiles Intercepted . | . . . . . . Alert | -11 -10 -9 -9 -7 -7 ------- Run | Scr Mat Mat Min Zio Dee Peak Influence 232 | . . 232 21 . . Average Influence 71 | . . 99 21 . . Maximum Alert Level 1 | . . 1 . . . Low Security (%) 89 | . . . . . . Level 1 10 | . . . . . . Level 2 . | . . . . . . Level 3 . | . . . . . . Level 4 . | . . . . . . Level 5 . | . . . . . . High Security . | . . . . . . Max Security . | . . . . . . Squads Dispatched 1 | . . 1 . . . Investigation 1 | . . 1 . . . Extermination . | . . . . . . Reinforcement . | . . . . . . Assault . | . . . . . . Garrison . | . . . . . . Intercept . | . . . . . . Construction Impeded . | . . . . . . Haulers Reinforced . | . . . . . . Stealth | -11 -10 -9 -9 -7 -7 --------- Run | Scr Mat Mat Min Zio Dee Distress Signals 3 | . . 3 . . . Communications Jammed . | . . . . . . Distress Signals . | . . . . . . Times Spotted 21 | . 1 14 3 . 3 Peak Tracking Total 6 | . 1 6 4 . 2 Tactical Retreats . | . . . . . . Traps | -11 -10 -9 -9 -7 -7 ------- Run | Scr Mat Mat Min Zio Dee Traps Triggered 3 | . . 3 . . . Indirectly . | . . . . . . Trap Hack Attempts . | . . . . . . Triggered . | . . . . . . Disarmed . | . . . . . . Reprogrammed . | . . . . . . Reused . | . . . . . . Traps Extracted . | . . . . . . Installed . | . . . . . . Triggered . | . . . . . . Machines | -11 -10 -9 -9 -7 -7 ---------- Run | Scr Mat Mat Min Zio Dee Machines Disabled 2 | . . . . . 2 Max in Single Turn 2 | . . . . . 2 Machines Sabotaged . | . . . . . . Garrisons Compromised . | . . . . . . Overloaded Fab Kills . | . . . . . . Fab Network Shutdowns . | . . . . . . Hacking | -11 -10 -9 -9 -7 -7 --------- Run | Scr Mat Mat Min Zio Dee Machines Accessed 6 | . . 6 . . . Terminals 4 | . . 4 . . . Fabricators . | . . . . . . Repair Stations 2 | . . 2 . . . Recycling Units . | . . . . . . Scanalyzers . | . . . . . . Garrison Access . | . . . . . . Total Hacks 20 | . . 20 . . . Successful 11 | . . 11 . . . Failed 9 | . . 9 . . . Catastrophic 1 | . . 1 . . . Database Lockouts . | . . . . . . Manual 11 | . . . . 11 . Terminals 10 | . . 10 . . . Fabricators . | . . . . . . Repair Stations 10 | . . 10 . . . Recycling Units . | . . . . . . Scanalyzers . | . . . . . . Garrison Access . | . . . . . . Terminal Hacks 4 | . . 4 . . . Prototype ID Bank 2 | . . 2 . . . Branch Access Points 1 | . . 1 . . . Recall Investigation 1 | . . 1 . . . Fabricator Hacks . | . . . . . . Repair Station Hacks 7 | . . 7 . . . Scan Component 4 | . . 4 . . . Repair 3 | . . 3 . . . Recycling Unit Hacks . | . . . . . . Scanalyzer . | . . . . . . Garrison Access Hacks . | . . . . . . Unauthorized Hacks . | . . . . . . Terminals . | . . . . . . Fabricators . | . . . . . . Repair Stations . | . . . . . . Recycling Units . | . . . . . . Scanalyzers . | . . . . . . Garrison Access . | . . . . . . Data Cores Recovered . | . . . . . . Used . | . . . . . . Hacking Detections 5 | . . 5 . . . Full Trace Events 2 | . . 2 . . . Feedback Events 1 | . . 1 . . . Corruption 1 | . . 1 . . . Feedback Blocked . | . . . . . . Robot Schematics Acquired . | . . . . . . Robots Built . | . . . . . . Matter . | . . . . . . Time . | . . . . . . Total Robot Build Rating . | . . . . . . Part Schematics Acquired . | . . . . . . Parts Built . | . . . . . . Matter . | . . . . . . Time . | . . . . . . Total Part Build Rating . | . . . . . . Parts Repaired 3 | . . 3 . . . Time 90 | . . 90 . . . Parts Recycled . | . . . . . . Recycled Matter . | . . . . . . Retrieved Matter . | . . . . . . Retrieved Components . | . . . . . . Parts Scanalyzed . | . . . . . . Part Schematics Acquired . | . . . . . . Parts Damaged . | . . . . . . Bothacking | -11 -10 -9 -9 -7 -7 ------------ Run | Scr Mat Mat Min Zio Dee Used RIF Installer . | . . . . . . Robots Hacked . | . . . . . . Non-combat . | . . . . . . Combat . | . . . . . . Robot Hacks Applied . | . . . . . . Relay Couplers Released . | . . . . . . Robots Rewired . | . . . . . . Allies Hacked . | . . . . . . Hacks Repelled . | . . . . . . Allies | -11 -10 -9 -9 -7 -7 -------- Run | Scr Mat Mat Min Zio Dee Total Allies 4 | . . . . 4 . Largest Group 4 | . . . . 4 . Highest-Rated Group 154 | . . . . 154 . Highest-Rated Ally 39 | . . . . 39 . Total Orders . | . . . . . . Ally Attacks . | . . . . . . Total Damage . | . . . . . . Kills . | . . . . . . Allies Corrupted . | . . . . . . Allies Melted . | . . . . . . Intel | -11 -10 -9 -9 -7 -7 ------- Run | Scr Mat Mat Min Zio Dee Robot Analysis Total . | . . . . . . Derelict Logs Recovered 2 | . . . . 2 . Drone Launches . | . . . . . . Drone Recoveries . | . . . . . . Exploration | -11 -10 -9 -9 -7 -7 ------------- Run | Scr Mat Mat Min Zio Dee Turns Passed 2640 | 93 174 733 37 1458 145 Spaces Moved 1471 | 61 85 343 22 881 79 Core 16 | 15 . . . . 1 Treads 1446 | 37 85 343 22 881 78 Legs 9 | 9 . . . . . Wheels . | . . . . . . Hover . | . . . . . . Flight . | . . . . . . Fastest Speed 50 | 50 160 160 160 160 160 Average Speed 158 | 130 160 160 160 160 163 Slowest Speed 400 | 160 160 160 160 160 400 Overloaded Moves . | . . . . . . Propulsion Burnouts . | . . . . . . Robots Hopped . | . . . . . . Cave-ins Triggered . | . . . . . . Exploration Rate (%) 32 | 3 22 35 13 86 37 Regions Visited 5 Branch Regions 3 Pre-discovered Areas 2 | . . . . 2 . Known Exits Taken 1 | . . 1 . . . Unknown Exits Taken 4 | 1 1 . 1 1 . Scrap Searched 3 | . . . . 3 . Spaces Dug . | . . . . . . Terrain Destroyed . | . . . . . . Melee . | . . . . . . Projectile . | . . . . . . AOE . | . . . . . . Actions | -11 -10 -9 -9 -7 -7 --------- Run | Scr Mat Mat Min Zio Dee Total 1724 | 72 121 485 24 932 90 Wait 176 | . 35 98 2 33 8 Move 1466 | 60 84 342 21 880 79 Hop . | . . . . . . Pick Up 9 | 2 . 2 1 4 . Fast Attach 20 | 8 1 6 . 5 . Attach 1 | . . . . . 1 Detach 1 | . . . . 1 . Swap 10 | . . 10 . . . Drop 18 | 2 . 7 . 9 . Fire 23 | . 1 20 . . 2 Melee . | . . . . . . Ram . | . . . . . . Kick . | . . . . . . Crush . | . . . . . . Escape Stasis . | . . . . . . Rewire . | . . . . . . Trap . | . . . . . . Miscellaneous . | . . . . . . Route ------- -11/Scrapyard -10/Materials -9/Materials -9/Mines -7/Zion -7/Deep Caves History --------- Turn | Location | Event 6 | -11/Scrapyard | Discovered new exit (range 15) 94 | -11/Scrapyard | Entered Materials 256 | -10/Materials | Discovered new exit (range 9) 268 | -10/Materials | Entered another Materials area 268 | -9/Materials | Evolved 2 slots: Utility x1, Weapon x1 312 | -9/Materials | Build established: Mutant 656 | -9/Materials | Repaired Hvy. Assault Rifle 891 | -9/Materials | Repaired Hrd. Light Armor Plating 918 | -9/Materials | Repaired Assault Rifle 968 | -9/Materials | Identified exit to Mines 1001 | -9/Materials | Entered Mines 1010 | -9/Mines | Received a Rocket Launcher from a helpful Derelict 1017 | -9/Mines | A Derelict revealed a hidden shortcut to a safe place 1038 | -9/Mines | Entered Zion 1091 | -7/Zion | System corruption cleaned by Quarantine Array 1152 | -7/Zion | Learned location of Data Miner (-6) 1224 | -7/Zion | Build established: Scavenger-Tank 1263 | -7/Zion | Learned Factory emergency access door positions 1356 | -7/Zion | Found Prototype Energy Gun 1458 | -7/Zion | Acquired unknown access codes intercepted by a Zionite 1574 | -7/Zion | Found Prototype Processor 1574 | -7/Zion | Identified Exp. Signal Interpreter 1578 | -7/Zion | Found Prototype Hackware 1578 | -7/Zion | Identified Exp. System Shield 1595 | -7/Zion | Found Prototype Processor 1595 | -7/Zion | Identified Exp. Melee Analysis Suite 1619 | -7/Zion | Found Prototype Processor 1622 | -7/Zion | Found Prototype Processor 1796 | -7/Zion | System corruption cleaned by Quarantine Array 1868 | -7/Zion | Build established: Scavenger-Skirmisher 1898 | -7/Zion | Learned Factory interactive machine intel 1916 | -7/Zion | Learned location of 1 exit from Factory 2215 | -7/Zion | Imprinted 2218 | -7/Zion | Declared Zion's savior 2458 | -7/Zion | Opened final containment barrier to the Deep Caves 2482 | -7/Zion | Discovered new exit (range 5) 2486 | -7/Zion | Saw the warning signs outside the Deep Caves entrance 2496 | -7/Zion | Entered Deep Caves 2496 | -7/Deep Caves | Accompanied by 4 allies 2514 | -7/Deep Caves | Build established: Messiah-Skirmisher 2616 | -7/Deep Caves | Attacked by Z-Imprinter 2619 | -7/Deep Caves | Z-Facility disabled 2635 | -7/Deep Caves | Core integrity fell below 50% 2639 | -7/Deep Caves | Core integrity fell below 20% 2641 | -7/Deep Caves | Destroyed by Z-Imprinter with Zionite Laser-M Last Messages --------------- 02619_ Destroyed Hover Unit. 02619_ Destroyed Lgt. Ion Engine. 02619_ Destroyed Hover Unit. 02619_ Destroyed Datajack. 02619_ Destroyed Mak. Hacking Suite. 02619_ YG-V2R(o) destroyed. 02619_ Destroyed Lgt. Ion Engine. 02619_ Destroyed Hover Unit. 02619_ Destroyed Datajack. 02619_ Destroyed Mak. Hacking Suite. 02619_ A2-5YP(o) destroyed. 02619_ Destroyed Hover Unit. 02619_ Destroyed Lgt. Ion Engine. 02619_ Destroyed Hover Unit. 02619_ Destroyed Datajack. 02619_ Destroyed Mak. Hacking Suite. 02619_ DN-DSC(o) destroyed. 02628_ Lgt. Treads destroyed. 02631_ Hvy. Assault Rifle destroyed. 02634_ Assault Cannon destroyed. Map ----- +----------------------------------------------------+ | ?????????????????? #??????????????????????? | | ????????????????? ?????###??????????????? | | ???????????????? ##?### ##?????######??? | | ???????????????? ## # #???### ##?? | | ???????????????? ##### #?? | | ???????????????? #?? | | ????????????????? #?? | | ????????????????? #??? | | ???????????????? #??? | | ??????????????? """""" ##?? | | ??????????????""""""""" ### | | ????????????""""""" | | ??????????""""""" | | ?????????""""" | | ???????? """ # | | ???????? " ### | | ?????? " ##?? | | ?????? I #??? | | ????? ##?? | | ????? zz #?? | | ????? #?? | | ???? #?? | | ???? ##?? | | ???? #??? | | ??? #?? | | ??? @ #?? | | ??? ##?? | | ???? ##??? | | ???? #???? | | ???? #??? | | ????? #?? | | ????? #?? | | ????? ##?? | | ?????? #??? | | ?????? #??? | | ??????? ??? | | ??????? ??? | | ??????? ???? | | ???????? ????? | | ???????? ?????? | | ????????? ??????? | | ????????? ???????? | | ??????????? ##### ?????????? | | ????????????? ###?????## ???????????? | | ???????????????? #??????????#??????????????? | | ?????????????????? ####??????????????????????????? | | ?????????????????????????????????????????????????? | | ?????????????????????????????????????????????????? | | | | | +----------------------------------------------------+ Best States ------------- Heat Dissipation 28 Energy Generation 12 Energy Capacity 265 Matter Stores 300 Matter Capacity 300 Sight Range 23 Terrain Scan Density 10 Armor Coverage 300 Evasion (%) 40 Recoil Reduction 2 Defensive Hacking 16 Item Schematics ----------------- None Robot Schematics ------------------ None Fabricated ------------ Nothing Alien Tech Used ----------------- None Achievements -------------- Adventurer Hard Hitter Robot Respite Signs Are For Wimps The One Challenges ------------ None Game ------ Seed NeutronTachyonMapper Manual? 0 Play Time 00:24:24 Cumulative 15.6 hours Start 2019.10.23 @ 20:53:37 End 2019.10.23 @ 21:16:26 Sessions 1 Manual Loads 0 Difficulty Rogue Special Mode None Game No. 19 Rogue 19 Adventurer 0 Explorer 0 Win Type - Total 0 Types 0/0/0/0/0/0/0 Lore% 22 Gallery% 26 Achievement% 27 Wizard Run 0 Options --------- ASCII 0 Keyboard 0 Movement Numpad Keybinds 0 Fullscreen 1 Font 16/Terminus Map View 76x50 Tactical HUD 1 Map Filters NONE Filters NONE Steam 1 RUN: 9107ea46-89d3-4931-aaa9-1843b311c32f